bitfinex/quotes_BTCUSD_20250114
["timestamp","ask_amount","ask_price","bid_price","bid_amount"]
[1736823009929,0.70005403,95086.0,95085.0,0.00090215]
[1736823010139,0.70864228,95086.0,95085.0,0.00090215]
[1736823010303,0.70964228,95086.0,95085.0,0.00090215]
[1736823010618,0.71364228,95086.0,95085.0,0.00090215]
[1736823011590,0.077,95084.0,95055.0,0.00445293]
[1736823011769,0.077,95064.0,95057.0,4.866e-05]
[1736823011940,0.10980384,95063.0,95057.0,4.866e-05]
[1736823012627,0.210389,95062.0,95057.0,4.866e-05]
[1736823012829,0.210393,95060.0,95057.0,4.866e-05]
[1736823013167,0.10980384,95059.0,95057.0,0.00504866]
[1736823013413,0.10980384,95059.0,95057.0,4.866e-05]
[1736823014884,0.10980384,95059.0,95057.0,0.00504866]
[1736823015082,0.10980384,95059.0,95057.0,4.866e-05]
[1736823015530,0.10980384,95059.0,95057.0,0.00604866]
[1736823018355,0.10980384,95059.0,95057.0,0.00690146]
[1736823024391,0.10980384,95059.0,95058.0,0.01391656]
[1736823024891,0.13280384,95059.0,95058.0,0.01391656]
[1736823025108,0.13280384,95059.0,95057.0,0.00090146]
[1736823025505,0.13280384,95059.0,95058.0,0.006]
[1736823026720,0.10980384,95059.0,95058.0,0.006]
[1736823027828,0.10980384,95059.0,95057.0,0.00090146]
[1736823028031,0.10980384,95059.0,95057.0,0.00690146]
[1736823028237,0.32019884,95059.0,95058.0,0.0155939]
[1736823028659,0.32119884,95059.0,95057.0,0.00090146]
[1736823028908,0.2978,95058.0,95057.0,0.00090146]
[1736823029045,0.40760384,95058.0,95057.0,0.00090146]
[1736823029702,0.36120384,95058.0,95057.0,0.00090146]
[1736823029909,0.10980384,95058.0,95057.0,0.00090146]
[1736823031353,0.11080384,95058.0,95057.0,0.00090146]
[1736823032273,0.11080384,95058.0,95057.0,0.01326001]
[1736823032473,0.11080384,95058.0,95057.0,0.00090146]
[1736823032604,0.11080384,95058.0,95057.0,0.01158045]
[1736823032805,0.11080384,95058.0,95057.0,0.00090146]
[1736823033027,0.11080384,95058.0,95057.0,0.01325876]
[1736823033231,0.11080384,95058.0,95057.0,0.00090146]
[1736823033436,0.11080384,95058.0,95057.0,0.01325876]
[1736823033642,0.11080384,95058.0,95057.0,0.00090146]
[1736823033843,0.11080384,95058.0,95057.0,0.01325876]
[1736823034056,0.11080384,95058.0,95057.0,0.00090146]
[1736823034275,0.11080384,95058.0,95057.0,0.01325876]
[1736823034482,0.11080384,95058.0,95057.0,0.00090146]
[1736823034684,0.11080384,95058.0,95057.0,0.01325876]
[1736823034879,0.11080384,95058.0,95057.0,0.00090146]
[1736823035401,0.11080384,95058.0,95057.0,0.01325876]
[1736823035598,0.11080384,95058.0,95057.0,0.00090146]
[1736823037851,0.11080384,95058.0,95057.0,0.01325876]
[1736823038068,0.11080384,95058.0,95057.0,0.00090146]
[1736823038462,0.11080384,95058.0,95057.0,0.01325876]
[1736823038668,0.11080384,95058.0,95057.0,0.00090146]
[1736823038811,0.11080384,95058.0,95057.0,0.01325876]
[1736823039021,0.11080384,95058.0,95057.0,0.00090146]
[1736823039240,0.11080384,95058.0,95057.0,0.0115792]
[1736823039453,0.11080384,95058.0,95057.0,0.00090146]
[1736823039976,0.11080384,95058.0,95057.0,0.0115792]
[1736823040198,0.11080384,95058.0,95057.0,0.00090146]
[1736823040404,0.11080384,95058.0,95057.0,0.01325876]
[1736823040544,0.11080384,95058.0,95057.0,0.00090146]
[1736823040745,0.11080384,95058.0,95057.0,0.0115792]
[1736823042862,0.11259535,95058.0,95057.0,0.0115792]
[1736823043483,0.11259535,95058.0,95057.0,0.00090146]
[1736823054902,0.11246873,95058.0,95057.0,0.00090146]
[1736823056356,0.11246873,95058.0,95057.0,0.01157873]
[1736823059070,0.11246873,95058.0,95057.0,0.05907873]
[1736823059278,0.00279151,95058.0,95057.0,0.05907873]
[1736823059477,0.00279151,95058.0,95057.0,0.88476975]
[1736823059699,0.00279151,95058.0,95057.0,0.98987786]
[1736823059902,0.00279151,95058.0,95057.0,2.51050774]
[1736823060466,0.00279151,95058.0,95057.0,1.01050774]
[1736823060693,0.00179151,95058.0,95057.0,1.03805144]
[1736823061052,0.00179151,95058.0,95057.0,2.95749467]
[1736823061253,0.00179151,95058.0,95057.0,2.73070479]
[1736823061441,0.00279151,95058.0,95057.0,0.82242156]
[1736823061881,0.00279151,95058.0,95057.0,1.05842883]
[1736823062159,0.00279151,95058.0,95057.0,0.5778897]
[1736823062358,0.00279151,95058.0,95057.0,0.48581898]
[1736823062585,0.00179151,95058.0,95057.0,0.24781171]
[1736823063099,0.00179151,95058.0,95057.0,0.23213873]
[1736823064153,0.00279151,95058.0,95057.0,0.23213873]
[1736823064572,0.00179151,95058.0,95057.0,0.23213873]
[1736823064836,0.00279151,95058.0,95057.0,0.22813873]
[1736823065138,0.00179151,95058.0,95057.0,0.22913873]
[1736823065451,0.00279151,95058.0,95057.0,0.22813873]
[1736823065651,0.00179151,95058.0,95057.0,0.22813873]
[1736823065891,0.00179151,95058.0,95057.0,0.23013873]
[1736823066117,0.00279151,95058.0,95057.0,0.23013873]
[1736823066419,0.00279151,95058.0,95057.0,0.22813873]
[1736823066621,0.00279151,95058.0,95057.0,0.23013873]
[1736823067306,0.00179151,95058.0,95057.0,0.22397873]
[1736823067627,0.00279151,95058.0,95057.0,0.23013873]
[1736823067785,0.00179151,95058.0,95057.0,0.23181829]
[1736823067998,0.00179151,95058.0,95057.0,0.22981829]
[1736823068250,0.00179151,95058.0,95057.0,0.23181829]
[1736823068825,0.00279151,95058.0,95057.0,0.22981829]
[1736823069108,0.00279151,95058.0,95057.0,0.23181829]
[1736823069303,0.00379151,95058.0,95057.0,0.30355829]
[1736823069532,0.00379151,95058.0,95057.0,0.30771829]
[1736823069969,0.00379151,95058.0,95057.0,0.35701829]
[1736823070331,0.00379151,95058.0,95057.0,0.54586389]
[1736823070529,0.00179151,95058.0,95057.0,0.54586389]
[1736823070741,0.00179151,95058.0,95057.0,0.35701829]
[1736823070938,0.00279151,95058.0,95057.0,0.35701829]
[1736823071132,0.00179151,95058.0,95057.0,0.35501829]
[1736823071339,0.00179151,95058.0,95057.0,0.22981829]
[1736823071541,0.00179151,95058.0,95057.0,0.22765829]
[1736823071748,0.00179151,95058.0,95057.0,0.22565829]
[1736823071943,0.00179151,95058.0,95057.0,0.22365829]
[1736823072142,0.00279151,95058.0,95057.0,0.22565829]
[1736823072470,0.00179151,95058.0,95057.0,0.22565829]
[1736823072799,0.00179151,95058.0,95057.0,0.22365829]
[1736823072945,0.00179151,95058.0,95057.0,0.22565829]
[1736823073706,0.00279151,95058.0,95057.0,0.22565829]
[1736823074013,0.00179151,95058.0,95057.0,0.22565829]
[1736823074246,0.00179151,95058.0,95057.0,0.01525829]
[1736823074247,0.11159535,95058.0,95057.0,0.01525829]
[1736823074449,0.38909535,95058.0,95057.0,0.01325829]
[1736823074722,0.38809535,95058.0,95057.0,0.00290146]
[1736823074879,0.38909535,95058.0,95057.0,0.00290146]
[1736823075250,0.38809535,95058.0,95057.0,0.00090146]
[1736823075404,0.38809535,95058.0,95057.0,0.00190146]
[1736823075601,0.39863343,95058.0,95057.0,0.00190146]
[1736823075786,0.60903043,95058.0,95057.0,0.00190146]
[1736823075978,0.63203043,95058.0,95057.0,0.00190146]
[1736823080859,0.63103043,95058.0,95057.0,0.00090146]
[1736823081066,0.63203043,95058.0,95057.0,0.00190146]
[1736823081265,0.63403043,95058.0,95057.0,0.00190146]
[1736823081429,0.63403043,95058.0,95057.0,0.00090146]
[1736823081430,0.63303043,95058.0,95057.0,0.00090146]
[1736823081626,0.023,95040.0,95026.0,0.07521357]
[1736823081825,0.023,95040.0,95031.0,0.00579288]
[1736823081826,0.023,95038.0,95031.0,0.00579288]
[1736823082084,0.10980384,95037.0,95031.0,0.00579288]
[1736823082315,0.10980384,95037.0,95031.0,0.00048688]
[1736823083963,0.11180384,95037.0,95031.0,0.00048688]
[1736823084636,0.11180384,95037.0,95031.0,0.00248688]
[1736823084817,0.10980384,95037.0,95031.0,0.00248688]
[1736823085011,0.11480384,95037.0,95031.0,0.00248688]
[1736823085259,0.11480384,95037.0,95031.0,0.00048688]
[1736823085652,0.11480384,95037.0,95031.0,0.00148688]
[1736823086218,0.10980384,95037.0,95031.0,0.00148688]
[1736823087293,0.11580384,95037.0,95031.0,0.00148688]
[1736823087588,0.210453,95033.0,95031.0,0.00148688]
[1736823087784,0.13280384,95032.0,95031.0,0.00148688]
[1736823088389,0.13280384,95032.0,95031.0,0.00048688]
[1736823088764,0.13280384,95032.0,95031.0,0.00148688]
[1736823089902,0.13280384,95032.0,95031.0,0.00333988]
[1736823090257,0.13280384,95032.0,95031.0,0.00233988]
[1736823090551,0.14180384,95032.0,95031.0,0.00233988]
[1736823090955,0.14280384,95032.0,95031.0,0.00233988]
[1736823091267,0.11080384,95032.0,95031.0,0.00133988]
[1736823091472,0.10980384,95032.0,95031.0,0.00133988]
[1736823091681,0.11080384,95032.0,95031.0,0.00133988]
[1736823092095,0.11080384,95032.0,95031.0,0.01157859]
[1736823092303,0.11080384,95032.0,95031.0,0.00133988]
[1736823092475,0.11080384,95032.0,95031.0,0.01157859]
[1736823092680,0.11980384,95032.0,95031.0,0.00233988]
[1736823092842,0.11080384,95032.0,95031.0,0.01157859]
[1736823093044,0.11080384,95032.0,95031.0,0.00133988]
[1736823093264,0.11780384,95032.0,95031.0,0.01257859]
[1736823093467,0.11080384,95032.0,95031.0,0.00133988]
[1736823093909,0.11980384,95032.0,95031.0,0.01257859]
[1736823094135,0.10980384,95032.0,95031.0,0.00133988]
[1736823094352,0.0829,95054.0,95033.0,0.210453]
[1736823094528,0.007,95032.0,95031.0,0.00233988]
[1736823094744,0.007,95032.0,95031.0,0.21279688]
[1736823095360,0.007,95032.0,95031.0,0.21479688]
[1736823096059,0.11680384,95032.0,95031.0,0.00433988]
[1736823096300,0.10980384,95032.0,95031.0,0.00333988]
[1736823096674,0.11380384,95032.0,95031.0,0.00333988]
[1736823096870,0.10980384,95032.0,95031.0,0.00333988]
[1736823097032,0.10980384,95032.0,95031.0,0.00133988]
[1736823097240,0.11380384,95032.0,95031.0,0.00133988]
[1736823097435,0.11380384,95032.0,95031.0,0.00333988]
[1736823097857,0.11380384,95032.0,95031.0,0.00133988]
[1736823098063,0.10980384,95032.0,95031.0,0.00333988]
[1736823098263,0.11380384,95032.0,95031.0,0.00333988]
[1736823098642,0.11380384,95032.0,95031.0,0.00133988]
[1736823099041,0.11380384,95032.0,95031.0,0.00333988]
[1736823099440,0.10980384,95032.0,95031.0,0.00333988]
[1736823099908,0.11380384,95032.0,95031.0,0.00333988]
[1736823100473,0.11380384,95032.0,95031.0,0.00133988]
[1736823100673,0.10980384,95032.0,95031.0,0.00133988]
[1736823100873,0.03,95033.0,95032.0,0.210455]
[1736823101927,0.03,95033.0,95032.0,0.212455]
[1736823102967,0.033,95033.0,95032.0,0.212455]
[1736823103181,0.03,95033.0,95032.0,0.212455]
[1736823103543,0.031,95033.0,95032.0,0.212455]
[1736823103798,0.03,95033.0,95032.0,0.212455]
[1736823103947,0.03,95033.0,95032.0,0.210455]
[1736823104156,0.031,95033.0,95032.0,0.210455]
[1736823104354,0.031,95033.0,95032.0,0.212455]
[1736823104355,0.03,95033.0,95032.0,0.212455]
[1736823104784,0.03,95033.0,95032.0,0.210455]
[1736823105205,0.03,95033.0,95032.0,0.292255]
[1736823105544,0.03,95033.0,95032.0,0.339655]
[1736823105676,0.03,95033.0,95032.0,0.337655]
[1736823105883,0.03,95033.0,95032.0,0.339655]
[1736823106207,0.031,95033.0,95032.0,0.339655]
[1736823106405,0.001,95033.0,95032.0,0.339655]
[1736823106574,0.12773771,95050.0,95039.0,0.210439]
[1736823106771,0.10980384,95049.0,95039.0,0.210439]
[1736823107069,0.10980384,95049.0,95040.0,0.01023752]
[1736823108084,0.11480384,95049.0,95040.0,0.01023752]
[1736823108282,0.11480384,95049.0,95040.0,0.01123752]
[1736823108701,0.11480384,95049.0,95033.0,0.210453]
[1736823108966,0.11480384,95049.0,95038.0,0.210441]
[1736823109259,0.11480384,95049.0,95040.0,0.001]
[1736823109462,0.10980384,95049.0,95040.0,0.001]
[1736823109659,0.10980384,95049.0,95041.0,0.01023233]
[1736823109819,0.11480384,95049.0,95041.0,0.01023233]
[1736823110025,0.10980384,95049.0,95041.0,0.01023233]
[1736823110436,0.11480384,95049.0,95041.0,0.01023233]
[1736823110638,0.11480384,95049.0,95034.0,0.21045]
[1736823111056,0.11980384,95049.0,95035.0,0.01022606]
[1736823112488,0.0829,95048.0,95035.0,0.01022606]
[1736823112692,0.12773771,95045.0,95035.0,0.01022606]
[1736823113037,0.10980384,95044.0,95034.0,0.001]
[1736823113978,0.210431,95043.0,95031.0,0.00133988]
[1736823114212,0.10980384,95042.0,95031.0,0.00133988]
[1736823114419,0.10980384,95042.0,95035.0,0.001]
[1736823114830,0.10980384,95042.0,95032.0,0.01023135]
[1736823114831,0.10980384,95042.0,95031.0,0.00133988]
[1736823115186,0.10980384,95042.0,95032.0,0.01023135]
[1736823115389,0.10980384,95042.0,95031.0,0.00133988]
[1736823115568,0.10980384,95042.0,95032.0,0.01023135]
[1736823115783,0.10980384,95042.0,95031.0,0.00133988]
[1736823116178,0.10980384,95042.0,95034.0,0.001]
[1736823116567,0.10980384,95042.0,95031.0,0.00133988]
[1736823116786,0.11780384,95042.0,95032.0,0.001]
[1736823116912,0.11780384,95042.0,95032.0,0.01123135]
[1736823117129,0.10980384,95042.0,95031.0,0.00133988]
[1736823117320,0.11680384,95042.0,95034.0,0.001]
[1736823117756,0.10980384,95042.0,95031.0,0.00133988]
[1736823118131,0.11680384,95042.0,95032.0,0.01124074]
[1736823118549,0.11680384,95042.0,95032.0,0.001]
[1736823119339,0.10980384,95042.0,95031.0,0.00133988]
[1736823119894,0.10980384,95042.0,95032.0,0.01024074]
[1736823120187,0.10980384,95042.0,95032.0,0.001]
[1736823120422,0.008,95042.0,95041.0,0.1777]
[1736823120649,0.008,95042.0,95041.0,0.20022954]
[1736823120859,0.016,95042.0,95041.0,2.12243647]
[1736823121058,0.00179193,95049.0,95048.0,0.638119]
[1736823121480,0.00179193,95049.0,95048.0,0.54837673]
[1736823121696,0.00179193,95049.0,95048.0,0.57983891]
[1736823122550,0.00279193,95049.0,95048.0,0.58183891]
[1736823122725,0.00279193,95049.0,95048.0,0.59755718]
[1736823123164,0.00279193,95049.0,95048.0,0.566095]
[1736823123624,0.00279193,95049.0,95048.0,0.574095]
[1736823124032,0.00279193,95049.0,95048.0,0.55837673]
[1736823124195,0.00279193,95049.0,95048.0,0.30837673]
[1736823125214,0.00279193,95049.0,95048.0,0.31810921]
[1736823127469,0.00279193,95049.0,95048.0,0.24040921]
[1736823128405,0.00179193,95049.0,95048.0,0.23040921]
[1736823128603,0.00179193,95049.0,95048.0,0.23240921]
[1736823128832,0.00179193,95049.0,95048.0,0.23440921]
[1736823130034,0.00179193,95049.0,95048.0,0.23040921]
[1736823130246,0.00179193,95049.0,95048.0,0.23140921]
[1736823130439,0.00179193,95049.0,95048.0,0.23340921]
[1736823137215,0.00179193,95049.0,95048.0,0.01325773]
[1736823139059,0.00179193,95049.0,95048.0,0.01495721]
[1736823141373,0.00179193,95049.0,95048.0,0.01600919]
[1736823141688,0.00179193,95049.0,95048.0,0.01495721]
[1736823143872,0.00179193,95049.0,95048.0,0.01600917]
[1736823144070,0.00179193,95049.0,95048.0,0.34506917]
[1736823144287,0.00179193,95049.0,95048.0,0.34401721]
[1736823144491,0.00179193,95049.0,95048.0,0.24401721]
[1736823145106,0.00179193,95049.0,95048.0,0.14301721]
[1736823145434,0.00179193,95049.0,95048.0,0.15001721]
[1736823145770,0.00279193,95049.0,95048.0,0.29623473]
[1736823146158,0.00279193,95049.0,95048.0,0.15501721]
[1736823147203,0.00279193,95049.0,95048.0,0.03211721]
[1736823147593,0.00279193,95049.0,95048.0,0.02595721]
[1736823148744,0.00179193,95049.0,95048.0,0.01195721]
[1736823148954,0.00179193,95049.0,95048.0,0.01495721]
[1736823149543,0.00179193,95049.0,95048.0,0.01195721]
[1736823149719,0.00179193,95049.0,95048.0,0.01495721]
[1736823150545,0.00179193,95049.0,95048.0,0.01895721]
[1736823151015,0.00179193,95049.0,95048.0,0.01495721]
[1736823151161,0.00179193,95049.0,95048.0,0.01895721]
[1736823152167,0.00179193,95049.0,95048.0,0.01195721]
[1736823152534,0.00179193,95049.0,95048.0,0.01495721]
[1736823152891,0.00179193,95049.0,95048.0,0.01295721]
[1736823153304,0.00179193,95049.0,95048.0,0.01495721]
[1736823153673,0.00179193,95049.0,95048.0,0.08985721]
[1736823153902,0.00179193,95049.0,95048.0,0.0909092]
[1736823154278,0.00179193,95049.0,95048.0,1.5919092]
[1736823154570,0.00179193,95049.0,95048.0,1.58985721]
[1736823154774,0.00179193,95049.0,95048.0,1.68985721]
[1736823154948,0.00179193,95049.0,95048.0,1.69185721]
[1736823155159,0.00179193,95049.0,95048.0,1.68985721]
[1736823155307,0.00179193,95049.0,95048.0,2.12589634]
[1736823155714,0.00179193,95049.0,95048.0,2.36712956]
[1736823155916,0.00179193,95049.0,95048.0,2.51712956]
[1736823156124,0.00179193,95049.0,95048.0,2.6269334]
[1736823156324,0.00179193,95049.0,95048.0,2.72128503]
[1736823156989,0.00179193,95049.0,95048.0,2.48270018]
[1736823157970,0.00179193,95049.0,95048.0,2.48070018]
[1736823158288,0.00279193,95049.0,95048.0,2.49570018]
[1736823159817,0.00279193,95049.0,95048.0,0.99570018]
[1736823163790,0.00279193,95049.0,95048.0,2.49570018]
[1736823164738,0.00279193,95049.0,95048.0,2.77890891]
[1736823165111,0.00279193,95049.0,95048.0,2.49570018]
[1736823166407,0.00279193,95049.0,95048.0,2.53784718]
[1736823169902,9.3e-07,95049.0,95048.0,2.53784718]
[1736823173839,0.00179182,95049.0,95048.0,2.53784718]
[1736823180627,0.00179182,95049.0,95048.0,2.54400718]
[1736823181390,0.00179182,95049.0,95048.0,2.44400718]
[1736823181597,0.00179182,95049.0,95048.0,2.54400718]
[1736823184943,0.00166519,95049.0,95048.0,2.54485998]
[1736823185150,0.00166519,95049.0,95048.0,0.50915614]
[1736823185350,0.00166519,95049.0,95048.0,0.39631701]
[1736823186562,0.00166519,95049.0,95048.0,0.34817001]
[1736823186759,0.00166519,95049.0,95048.0,0.48948756]
[1736823186956,0.00166519,95049.0,95048.0,0.47932756]
[1736823187656,0.00166519,95049.0,95048.0,0.33301001]
[1736823187986,0.00166519,95049.0,95048.0,0.33701001]
[1736823188297,0.00166519,95049.0,95048.0,0.33301001]
[1736823188499,0.00166519,95049.0,95048.0,0.34001001]
[1736823188722,0.00166519,95049.0,95048.0,0.01281001]
[1736823189118,0.00166519,95049.0,95048.0,0.01881001]
[1736823189635,0.08176519,95049.0,95048.0,0.01881001]
[1736823189835,0.08176519,95049.0,95048.0,0.01681001]
[1736823190259,0.08176519,95049.0,95048.0,0.01581001]
[1736823190676,0.08176519,95049.0,95048.0,0.01881001]
[1736823194754,0.19156903,95049.0,95048.0,0.01881001]
[1736823195955,0.24066903,95049.0,95048.0,0.0038528]
[1736823196585,0.24066903,95049.0,95048.0,0.0008528]
[1736823196785,0.24066903,95049.0,95048.0,0.0018528]
[1736823197286,0.24066903,95049.0,95048.0,0.0008528]
[1736823197461,0.25087584,95049.0,95048.0,0.0008528]
[1736823198782,0.25187584,95049.0,95048.0,0.0008528]
[1736823198985,0.25087584,95049.0,95048.0,0.0008528]
[1736823199414,0.25187584,95049.0,95048.0,0.0008528]
[1736823199844,0.25187584,95049.0,95048.0,0.01277021]
[1736823200067,0.25087584,95049.0,95048.0,0.0008528]
[1736823200242,0.25087584,95049.0,95048.0,0.01107073]
[1736823200399,0.25187584,95049.0,95048.0,0.0008528]
[1736823200620,0.25187584,95049.0,95048.0,0.01107073]
[1736823200818,0.25187584,95049.0,95048.0,0.0008528]
[1736823201022,0.25187584,95049.0,95048.0,0.01107073]
[1736823201249,0.25187584,95049.0,95048.0,0.0008528]
[1736823201608,0.25187584,95049.0,95048.0,0.0018528]
[1736823202346,0.25187584,95049.0,95048.0,0.01206992]
[1736823204085,0.24166903,95049.0,95048.0,0.01206992]
[1736823209549,0.24166903,95049.0,95048.0,0.0018528]
[1736823215599,0.24166903,95049.0,95048.0,0.01362092]
[1736823215801,0.24166903,95049.0,95048.0,0.00355228]
[1736823216164,0.24166903,95049.0,95048.0,0.0018528]
[1736823226345,0.39166903,95049.0,95048.0,0.0018528]
[1736823228314,0.39166903,95049.0,95048.0,0.0008528]
[1736823228659,0.39366903,95049.0,95048.0,0.0008528]
[1736823229026,0.39166903,95049.0,95048.0,0.0008528]
[1736823229442,0.39366903,95049.0,95048.0,0.0008528]
[1736823229827,0.39166903,95049.0,95048.0,0.0008528]
[1736823230030,0.39066903,95049.0,95048.0,0.0008528]
[1736823230232,0.39266903,95049.0,95048.0,0.0018528]
[1736823230484,0.39466903,95049.0,95048.0,0.0018528]
[1736823230682,0.39266903,95049.0,95048.0,0.0008528]
[1736823231070,0.39566903,95049.0,95048.0,0.0018528]
[1736823231272,0.39266903,95049.0,95048.0,0.0008528]
[1736823231467,0.39066903,95049.0,95048.0,0.0008528]
[1736823231838,0.39566903,95049.0,95048.0,0.0018528]
[1736823232412,0.39366903,95049.0,95048.0,0.0018528]
[1736823232591,0.39566903,95049.0,95048.0,0.0018528]
[1736823233216,0.39366903,95049.0,95048.0,0.0018528]
[1736823233916,0.39066903,95049.0,95048.0,0.0008528]
[1736823234548,0.39266903,95049.0,95048.0,0.0018528]
[1736823234751,0.39466903,95049.0,95048.0,0.0018528]
[1736823235172,0.39066903,95049.0,95048.0,0.0008528]
[1736823235552,0.39266903,95049.0,95048.0,0.0008528]
[1736823236681,0.39466903,95049.0,95048.0,0.0018528]
[1736823239375,0.34556903,95049.0,95048.0,0.0018528]
[1736823239526,0.26546903,95049.0,95048.0,0.0018528]
[1736823240563,0.26346903,95049.0,95048.0,0.0008528]
[1736823240866,0.00166519,95049.0,95048.0,0.0775528]
[1736823241254,0.00566519,95049.0,95048.0,0.08763504]
[1736823241611,0.00166519,95049.0,95048.0,0.08763504]
[1736823241809,0.00366519,95049.0,95048.0,0.08763504]
[1736823243173,0.00166519,95049.0,95048.0,0.08763504]
[1736823243556,0.00366519,95049.0,95048.0,0.01093504]
[1736823243890,0.00166519,95049.0,95048.0,0.01093504]
[1736823244908,0.11146903,95049.0,95048.0,0.01093504]
[1736823245138,0.11146903,95049.0,95048.0,0.01193504]
[1736823245520,0.11146903,95049.0,95048.0,0.0018528]
[1736823245722,0.11146903,95049.0,95048.0,0.0008528]
[1736823246105,0.11246903,95049.0,95048.0,0.0008528]
[1736823247253,0.11446903,95049.0,95048.0,0.0008528]
[1736823247437,0.11246903,95049.0,95048.0,0.0008528]
[1736823247640,0.11446903,95049.0,95048.0,0.0008528]
[1736823247809,0.11546903,95049.0,95048.0,0.0008528]
[1736823249171,0.11646903,95049.0,95048.0,0.0008528]
[1736823251041,0.11646903,95049.0,95048.0,0.01091924]
[1736823251342,0.11646903,95049.0,95048.0,0.0008528]
[1736823251560,0.11646903,95049.0,95048.0,0.01262846]
[1736823251684,0.11346903,95049.0,95048.0,0.0008528]
[1736823251884,0.11446903,95049.0,95048.0,0.0008528]
[1736823252146,0.11646903,95049.0,95048.0,0.0008528]
[1736823252344,0.11646903,95049.0,95048.0,0.01092898]
[1736823252570,0.11646903,95049.0,95048.0,0.0008528]
[1736823253068,0.11546903,95049.0,95048.0,0.0008528]
[1736823253310,0.11646903,95049.0,95048.0,0.0008528]
[1736823253899,0.11446903,95049.0,95048.0,0.0008528]
[1736823254253,0.11646903,95049.0,95048.0,0.0008528]
[1736823254761,0.11546903,95049.0,95048.0,0.0008528]
[1736823258211,0.34546903,95049.0,95048.0,0.0008528]
[1736823259453,0.34346903,95049.0,95048.0,0.0008528]
[1736823259858,0.34546903,95049.0,95048.0,0.0018528]
[1736823260796,0.36846903,95049.0,95048.0,0.0018528]
[1736823260997,0.37046903,95049.0,95048.0,0.0018528]
[1736823261224,0.36846903,95049.0,95048.0,0.0008528]
[1736823261354,0.37146903,95049.0,95048.0,0.0018528]
[1736823261756,0.36846903,95049.0,95048.0,0.0008528]
[1736823261962,0.37746903,95049.0,95048.0,0.0018528]
[1736823262256,0.37546903,95049.0,95048.0,0.0018528]
[1736823262461,0.36646903,95049.0,95048.0,0.0008528]
[1736823262664,0.37546903,95049.0,95048.0,0.0018528]
[1736823263065,0.37746903,95049.0,95048.0,0.0018528]
[1736823268245,0.37546903,95049.0,95048.0,0.0018528]
[1736823268432,0.37546903,95049.0,95048.0,0.0008528]
[1736823268695,0.36846903,95049.0,95048.0,0.0008528]
[1736823268814,0.37346903,95049.0,95048.0,0.0018528]
[1736823273996,0.37146903,95049.0,95048.0,0.0018528]
[1736823274193,0.37546903,95049.0,95048.0,0.0008528]
[1736823274399,0.37046903,95049.0,95048.0,0.0008528]
[1736823274597,0.37546903,95049.0,95048.0,0.0018528]
[1736823274918,0.36646903,95049.0,95048.0,0.0008528]
[1736823275226,0.36646903,95049.0,95048.0,0.0018528]
[1736823275227,0.37546903,95049.0,95048.0,0.0018528]
[1736823275989,0.37046903,95049.0,95048.0,0.0008528]
[1736823276740,0.36646903,95049.0,95048.0,0.0008528]
[1736823276940,0.28946903,95049.0,95048.0,0.0008528]
[1736823277497,0.29546903,95049.0,95048.0,0.0018528]
[1736823277724,0.29846903,95049.0,95048.0,0.0018528]
[1736823277923,0.28946903,95049.0,95048.0,0.0008528]
[1736823278324,0.29846903,95049.0,95048.0,0.0018528]
[1736823282100,0.28946903,95049.0,95048.0,0.0008528]
[1736823282455,0.29846903,95049.0,95048.0,0.0018528]
[1736823282661,0.29546903,95049.0,95048.0,0.0018528]
[1736823283656,0.29846903,95049.0,95048.0,0.0018528]
[1736823299667,0.52256903,95049.0,95048.0,0.0018528]
[1736823300686,0.51056903,95049.0,95048.0,0.0008528]
[1736823300893,0.51456903,95049.0,95048.0,0.0008528]
[1736823301073,0.52356903,95049.0,95048.0,0.0018528]
[1736823301574,0.173,95048.0,95016.0,0.07846996]
[1736823301799,0.08390993,95026.0,95017.0,0.00176813]
[1736823302001,0.10980384,95025.0,95018.0,0.004218]
[1736823302207,0.10980384,95025.0,95019.0,0.005647]
[1736823302374,0.10980384,95025.0,95017.0,0.00176813]
[1736823302561,0.10980384,95025.0,95018.0,0.00564551]
[1736823303576,0.10980384,95025.0,95019.0,0.0495]
[1736823303951,0.10980384,95025.0,95020.0,0.00564848]
[1736823304607,0.10980384,95025.0,95021.0,0.0815]
[1736823304827,0.10980384,95025.0,95022.0,0.00565145]
[1736823305479,0.10980384,95025.0,95023.0,0.00175484]
[1736823307092,0.01025362,95026.0,95023.0,0.00175484]
[1736823307254,0.10980384,95026.0,95023.0,0.00175484]
[1736823307455,0.10980384,95026.0,95024.0,0.0815]
[1736823307879,0.10980384,95026.0,95025.0,0.00175041]
[1736823308297,0.10980384,95026.0,95024.0,0.0815]
[1736823308546,0.11080384,95026.0,95025.0,0.00175041]
[1736823308754,0.10980384,95026.0,95025.0,0.00175041]
[1736823308940,0.10980384,95026.0,95024.0,0.0815]
[1736823309121,0.11080384,95026.0,95025.0,0.00175041]
[1736823309442,0.11080384,95026.0,95024.0,0.0815]
[1736823309691,0.11080384,95026.0,95025.0,0.00175041]
[1736823310027,0.11080384,95026.0,95024.0,0.0825]
[1736823310028,0.11080384,95026.0,95024.0,0.0815]
[1736823310230,0.11080384,95026.0,95025.0,0.00175041]
[1736823310424,0.11080384,95026.0,95025.0,0.001]
[1736823310633,0.10980384,95026.0,95025.0,0.00275041]
[1736823311859,0.10980384,95026.0,95025.0,0.00175041]
[1736823312266,0.10980384,95026.0,95024.0,0.0825]
[1736823312460,0.10980384,95026.0,95025.0,0.00175041]
[1736823312906,0.10980384,95026.0,95025.0,0.001]
[1736823313104,0.10980384,95026.0,95025.0,0.00275041]
[1736823313312,0.10980384,95026.0,95024.0,0.08073013]
[1736823313679,0.10980384,95026.0,95025.0,0.001]
[1736823314992,0.10980384,95026.0,95024.0,0.08073013]
[1736823315376,0.10980384,95026.0,95024.0,0.08173013]
[1736823315786,0.10980384,95026.0,95024.0,0.08073013]
[1736823316154,0.10980384,95026.0,95024.0,0.08173013]
[1736823316361,0.10980384,95026.0,95025.0,0.00175041]
[1736823316605,0.10980384,95026.0,95024.0,0.08073013]
[1736823316809,0.10980384,95026.0,95025.0,0.00175041]
[1736823317227,0.10980384,95026.0,95025.0,0.00566121]
[1736823317425,0.10980384,95026.0,95024.0,0.08173013]
[1736823318227,0.10980384,95026.0,95024.0,0.08073013]
[1736823318419,0.10980384,95026.0,95025.0,0.001]
[1736823318990,0.10980384,95026.0,95024.0,0.08073013]
[1736823319428,0.10980384,95026.0,95024.0,0.08173013]
[1736823320004,0.10980384,95026.0,95024.0,0.08073013]
[1736823321339,0.10980384,95026.0,95024.0,0.08173013]
[1736823321706,0.10980384,95026.0,95024.0,0.08073013]
[1736823322130,0.31570321,95050.0,95024.0,0.08073013]
[1736823322339,0.10980384,95048.0,95027.0,0.0752]
[1736823322519,0.08390993,95040.0,95031.0,0.0752]
[1736823322714,0.10980384,95039.0,95032.0,0.210455]
[1736823323286,0.10980384,95039.0,95031.0,0.0752]
[1736823324890,0.10980384,95039.0,95032.0,0.14212469]
[1736823325086,0.10980384,95039.0,95032.0,0.14312469]
[1736823325231,0.10980384,95039.0,95032.0,0.001]